fUSD/lending_fUSD_20240628
["ID","MTS","AMOUNT","RATE_DAILY","PERIOD"]
[330519470,1719558649934,-166.73,0.00015831,2]
[330519471,1719558649943,-214.03,0.00015834,2]
[330519472,1719558649953,-605.88,0.00015873,2]
[330519473,1719558649963,-13906.26490331,0.00015991,2]
[330519474,1719558649972,-800.0,0.0001614,2]
[330519475,1719558649983,-500.0,0.0001614,2]
[330519476,1719558649992,-1000.0,0.0001614,2]
[330519477,1719558650003,-345.03629142,0.0001614,2]
[330519478,1719558650014,-500.0,0.0001614,2]
[330519479,1719558650024,-418.71,0.00016274,2]
[330519480,1719558650034,-418.71,0.00016274,2]
[330519481,1719558650044,-853.46,0.00016274,2]
[330519482,1719558650054,-417.79,0.00016274,2]
[330519483,1719558650064,-853.46,0.00016274,2]
[330519484,1719558650075,-851.12,0.00016274,2]
[330519485,1719558650090,-2651.54243,0.0001636,2]
[330519486,1719558650100,-241.23,0.00016438,2]
[330519487,1719558650109,-600.0,0.00016512,2]
[330519488,1719558650120,-1758.53588891,0.00016566,2]
[330519489,1719558650132,-291.0,0.00016595,2]
[330519490,1719558650143,-5804.0,0.00016595,2]
[330519491,1719558650152,-1662.0,0.00016595,2]
[330519492,1719558650163,-1198.0,0.00016595,2]
[330519493,1719558650174,-38194.0,0.00016595,2]
[330519494,1719558650183,-5172.0,0.00016595,2]
[330519495,1719558650193,-1069.0,0.00016595,2]
[330519496,1719558650204,-212.31,0.00016615,2]
[330519497,1719558650214,-13906.26490331,0.00016688,2]
[330519498,1719558650224,-305.3305634,0.00016699,2]
[330519499,1719558650233,-400.0,0.00016712,2]
[330519500,1719558650243,-5791.1094587,0.00016751,2]
[330519501,1719558650252,-175.84386721,0.00016763,2]
[330519502,1719558650262,-800.0,0.00016962,2]
[330519503,1719558650271,-1000.0,0.00016962,2]
[330519504,1719558650280,-1582.92,0.00016986,3]
[330519505,1719558650290,-1940.25974927,0.00017,2]
[330519506,1719558650300,-155.72882096,0.00017,10]
[330519507,1719558650310,-168.6,0.00017174,2]
[330519508,1719558650319,-789.39,0.00017233,2]
[330519509,1719558650330,-416.77,0.00017233,2]
[330519510,1719558650339,-423.99,0.00017233,2]
[330519511,1719558650351,-150.0,0.00017233,2]
[330519512,1719558650360,-150.0,0.00017233,2]
[330519513,1719558650370,-331.55,0.00017233,2]
[330519514,1719558650382,-423.99,0.00017233,2]
[330519515,1719558650391,-150.0,0.00017233,2]
[330519516,1719558650401,-354.56,0.00017233,2]
[330519517,1719558650410,-150.0,0.00017233,2]
[330519518,1719558650419,-164.73,0.00017233,2]
[330519519,1719558650428,-150.0,0.00017233,2]
[330519520,1719558650437,-294.3,0.00017233,2]
[330519521,1719558650446,-150.0,0.00017233,2]
[330519522,1719558650455,-354.56,0.00017233,2]
[330519523,1719558650464,-354.56,0.00017233,2]
[330519524,1719558650474,-150.0,0.00017233,2]
[330519525,1719558650483,-354.54,0.00017233,2]
[330519526,1719558650492,-242.22120042,0.00017314,2]
[330519527,1719558650502,-148746.0,0.00017315,2]
[330519528,1719558650512,-5791.1094587,0.00017322,2]
[330519529,1719558650524,-823.0,0.0001735,2]
[330519530,1719558650534,-13906.26490331,0.00017385,2]
[330519531,1719558650543,-214.03,0.00017418,2]
[330519532,1719558650552,-10000.0,0.00017438,2]
[330519533,1719558650561,-800.0,0.0001751,2]
[330519534,1719558650570,-1000.0,0.0001751,2]
[330519535,1719558650579,-152.0,0.00017565,2]
[330519536,1719558650588,-209.076,0.00017565,2]
[330519537,1719558650599,-153.945,0.00017565,2]
[330519538,1719558650608,-244.325,0.00017565,2]
[330519539,1719558650617,-150.861,0.00017565,2]
[330519540,1719558650626,-242.962,0.00017565,2]
[330519541,1719558650635,-157.153,0.00017565,2]
[330519542,1719558650644,-170.565,0.00017565,2]
[330519543,1719558650653,-150.235,0.00017565,2]
[330519544,1719558650663,-155.517,0.00017565,2]
[330519545,1719558650672,-150.193,0.00017565,2]
[330519546,1719558650681,-150.488,0.00017565,2]
[330519547,1719558650690,-1656.0,0.00017565,2]
[330519548,1719558650699,-1830.0,0.00017565,2]
[330519549,1719558650708,-360.0,0.00017565,2]
[330519550,1719558650718,-1273.0,0.00017565,2]
[330519551,1719558650727,-815.585,0.00017565,2]
[330519552,1719558650736,-448.0,0.00017565,2]
[330519553,1719558650745,-450.775,0.00017565,2]
[330519554,1719558650755,-659.895,0.00017565,2]
[330519555,1719558650763,-166.0,0.00017565,2]
[330519556,1719558650772,-2414.0,0.00017565,2]
[330519557,1719558650781,-1304.0,0.00017565,2]
[330519558,1719558650791,-150.0,0.00017565,2]
[330519559,1719558650800,-3203.0,0.00017565,2]
[330519560,1719558650809,-548.0,0.00017565,2]
[330519561,1719558650818,-1986.0,0.00017565,2]
[330519562,1719558650827,-500.0,0.00017784,2]
[330519563,1719558650836,-500.0,0.00017784,2]
[330519564,1719558650846,-339.34174154,0.00017807,2]
[330519565,1719558650855,-1000.0,0.00017808,2]
[330519566,1719558650864,-1000.0,0.00017808,2]
[330519567,1719558650873,-1000.0,0.00017808,2]
[330519568,1719558650883,-1000.0,0.00017808,2]
[330519569,1719558650891,-1000.0,0.00017808,2]
[330519570,1719558650901,-1000.0,0.00017808,2]
[330519571,1719558650910,-1000.0,0.00017808,2]
[330519572,1719558650919,-1000.0,0.00017808,2]
[330519573,1719558650928,-1000.0,0.00017808,2]
[330519574,1719558650937,-1000.0,0.00017808,2]
[330519575,1719558650945,-1000.0,0.00017808,2]
[330519576,1719558650955,-1000.0,0.00017808,2]
[330519577,1719558650964,-1000.0,0.00017808,2]
[330519578,1719558650973,-1000.0,0.00017808,2]
[330519579,1719558650982,-1000.0,0.00017808,2]
[330519580,1719558650992,-1000.0,0.00017808,2]
[330519581,1719558651001,-1000.0,0.00017808,2]
[330519582,1719558651011,-1000.0,0.00017808,2]
[330519583,1719558651020,-1000.0,0.00017808,2]
[330519584,1719558651030,-1000.0,0.00017808,2]
[330519585,1719558651039,-1000.0,0.00017808,2]
[330519586,1719558651048,-1000.0,0.00017808,2]
[330519587,1719558651058,-1000.0,0.00017808,2]
[330519588,1719558651068,-1000.0,0.00017808,2]
[330519589,1719558651079,-1000.0,0.00017808,2]
[330519590,1719558651089,-1000.0,0.00017808,2]
[330519591,1719558651099,-1000.0,0.00017808,2]
[330519592,1719558651108,-1000.0,0.00017808,2]
[330519593,1719558651118,-1000.0,0.00017808,2]
[330519594,1719558651130,-1000.0,0.00017808,2]
[330519595,1719558651140,-1000.0,0.00017808,2]
[330519596,1719558651149,-1000.0,0.00017808,2]
[330519597,1719558651162,-1000.0,0.00017808,2]
[330519598,1719558651172,-1000.0,0.00017808,2]
[330519599,1719558651181,-1000.0,0.00017808,2]
[330519600,1719558651191,-1000.0,0.00017808,2]
[330519601,1719558651200,-1000.0,0.00017808,2]
[330519602,1719558651209,-1000.0,0.00017808,2]
[330519603,1719558651219,-1000.0,0.00017808,2]
[330519604,1719558651228,-1000.0,0.00017808,2]
[330519605,1719558651237,-1000.0,0.00017808,2]
[330519606,1719558651247,-1000.0,0.00017808,2]
[330519607,1719558651256,-1000.0,0.00017808,2]
[330519608,1719558651267,-1000.0,0.00017808,2]
[330519609,1719558651276,-1000.0,0.00017808,2]
[330519610,1719558651286,-1000.0,0.00017808,2]
[330519611,1719558651295,-1000.0,0.00017808,2]
[330519612,1719558651304,-1000.0,0.00017808,2]
[330519613,1719558651313,-1000.0,0.00017808,2]
[330519614,1719558651322,-1000.0,0.00017808,2]
[330519615,1719558651332,-1000.0,0.00017808,2]
[330519616,1719558651341,-1000.0,0.00017808,2]
[330519617,1719558651351,-1000.0,0.00017808,2]
[330519618,1719558651360,-1000.0,0.00017808,2]
[330519619,1719558651370,-1000.0,0.00017808,2]
[330519620,1719558651629,-173.0,0.00017808,2]
[330519621,1719558651665,-5791.1094587,0.00017892,2]
[330519622,1719558651676,-296.71594966,0.00017925,2]
[330519623,1719558651688,-448.31506776,0.00017958,2]
[330519624,1719558651698,-854.68975143,0.00018,2]
[330519625,1719558651709,-511980.4052087,0.00018,3]
[330519626,1719558651720,-800.0,0.00018058,2]
[330519627,1719558651730,-1000.0,0.00018058,2]
[330519628,1719558651740,-13906.26490331,0.00018082,2]
[330519629,1719558651749,-605.88,0.00018137,2]
[330519630,1719558651759,-600.0,0.00018164,2]
[330519631,1719558651768,-212.31,0.00018277,2]
[330519632,1719558651778,-571.0,0.000183,3]
[330519633,1719558651788,-2505.0,0.000183,3]
[330519634,1719558651797,-500.0,0.00018314,2]
[330519635,1719558651807,-400.0,0.00018383,2]
[330519636,1719558651817,-5791.1094587,0.00018462,2]
[330519637,1719558651827,-5000.0,0.00018463,7]
[330519638,1719558651836,-13906.26490331,0.00018779,2]
[330519639,1719558651846,-2651.54244,0.0001886,2]
[330519640,1719558651857,-500.0,0.0001888,2]
[330519641,1719558651867,-500.0,0.0001888,2]
[330519642,1719558651876,-4827.5168423,0.000189,2]
[330519643,1719558651885,-25000.0,0.000189,2]
[330519644,1719558651895,-1000.0,0.000189,2]
[330519645,1719558651904,-164.51,0.000189,2]
[330519646,1719558651914,-448.31506774,0.00018929,2]
[330519647,1719558651923,-164.51,0.00018968,2]
[330519648,1719558651934,-151.0,0.00018978,2]
[330519649,1719558651943,-151.0,0.00018978,2]
[330519650,1719558651953,-280.347083,0.00018978,2]
[330519651,1719558651962,-280.347083,0.00018978,2]
[330519652,1719558651972,-153.594554,0.00018978,2]
[330519653,1719558651982,-151.0,0.00018978,2]
[330519654,1719558651992,-151.0,0.00018978,2]
[330519655,1719558652002,-151.0,0.00018978,2]
[330519656,1719558652011,-163.046696,0.00018978,2]
[330519657,1719558652021,-212.330985,0.00018978,2]
[330519658,1719558652031,-212.330985,0.00018978,2]
[330519659,1719558652040,-151.0,0.00018978,2]
[330519660,1719558652050,-151.0,0.00018978,2]
[330519661,1719558652060,-151.0,0.00018978,2]
[330519662,1719558652074,-151.0,0.00018978,2]
[330519663,1719558652086,-151.0,0.00018978,2]
[330519664,1719558652096,-151.0,0.00018978,2]
[330519665,1719558652107,-151.0,0.00018978,2]
[330519666,1719558652117,-151.0,0.00018978,2]
[330519667,1719558652128,-151.0,0.00018978,2]
[330519668,1719558652139,-151.0,0.00018978,2]
[330519669,1719558652149,-151.0,0.00018978,2]
[330519670,1719558652161,-151.0,0.00018978,2]
[330519671,1719558652170,-151.0,0.00018978,2]
[330519672,1719558652180,-151.0,0.00018978,2]
[330519673,1719558652189,-151.0,0.00018978,2]
[330519674,1719558652198,-151.0,0.00018978,2]
[330519675,1719558652208,-240.197336,0.00018978,2]
[330519676,1719558652217,-240.197336,0.00018978,2]
[330519677,1719558652227,-151.0,0.00018978,2]
[330519678,1719558652236,-151.0,0.00018978,2]
[330519679,1719558652246,-151.0,0.00018978,2]
[330519680,1719558652256,-151.0,0.00018978,2]
[330519681,1719558652266,-151.0,0.00018978,2]
[330519682,1719558652276,-280.064129,0.00018978,2]
[330519683,1719558652286,-151.0,0.00018978,2]
[330519684,1719558652295,-280.064129,0.00018978,2]
[330519685,1719558652305,-196.03312,0.00018978,2]
[330519686,1719558652315,-151.0,0.00018978,2]
[330519687,1719558652326,-151.0,0.00018978,2]
[330519688,1719558652336,-196.03312,0.00018978,2]
[330519689,1719558652347,-151.0,0.00018978,2]
[330519690,1719558652358,-163.108958,0.00018978,2]
[330519691,1719558652368,-163.108958,0.00018978,2]
[330519692,1719558652378,-379.226086,0.00018978,2]
[330519693,1719558652388,-379.226086,0.00018978,2]
[330519694,1719558652398,-213.095979,0.00018978,2]
[330519695,1719558652408,-151.0,0.00018978,2]
[330519696,1719558652417,-213.095979,0.00018978,2]
[330519697,1719558652427,-151.0,0.00018978,2]
[330519698,1719558652437,-151.0,0.00018978,2]
[330519699,1719558652447,-248.307504,0.00018978,2]
[330519700,1719558652457,-248.307504,0.00018978,2]
[330519701,1719558652466,-3179.524298,0.00018978,2]
[330519702,1719558652476,-151.0,0.00018978,2]
[330519703,1719558652486,-3179.524298,0.00018978,2]
[330519704,1719558652496,-151.0,0.00018978,2]
[330519705,1719558652506,-520.285749,0.00018978,2]
[330519706,1719558652516,-520.285749,0.00018978,2]
[330519707,1719558652526,-152.649412,0.00018978,2]
[330519708,1719558652535,-151.0,0.00018978,2]
[330519709,1719558652545,-151.0,0.00018978,2]
[330519710,1719558652555,-404117.01136069,0.00018978,2]
[330519711,1719558652567,-174244.10534098,0.00019,2]
[330519712,1719558652577,-155.0,0.00019,2]
[330519713,1719558652587,-1000.0,0.00019,3]
[330519714,1719558652596,-850.0,0.00019,2]
[330519715,1719558652607,-214.03,0.00019001,2]
[330519716,1719558652617,-1152.0,0.00019024,2]
[330519717,1719558652627,-5791.1094587,0.00019032,2]
[330519718,1719558652637,-155.0,0.00019069,2]
[330519719,1719558652647,-444.7399,0.00019078,2]
[330519720,1719558652657,-800.0,0.00019154,2]
[330519721,1719558652667,-1000.0,0.00019154,2]
[330519722,1719558652678,-157.28134079,0.00019178,2]
[330519723,1719558652689,-491.70061527,0.00019178,2]
[330519724,1719558652698,-500.0,0.00019178,2]
[330519725,1719558652708,-500.0,0.00019178,2]
[330519726,1719558652717,-500.0,0.00019178,2]
[330519727,1719558652727,-500.0,0.00019178,2]
[330519728,1719558652737,-500.0,0.00019178,2]
[330519729,1719558652746,-500.0,0.00019178,2]
[330519730,1719558652756,-500.0,0.00019178,2]
[330519731,1719558652765,-500.0,0.00019178,2]
[330519732,1719558652775,-270.14299784,0.00019178,2]
[330519733,1719558652784,-500.0,0.00019178,2]
[330519734,1719558652794,-500.0,0.00019178,2]
[330519735,1719558652804,-500.0,0.00019178,2]
[330519736,1719558652813,-500.0,0.00019178,2]
[330519737,1719558652823,-500.0,0.00019178,2]
[330519738,1719558652832,-500.0,0.00019178,2]
[330519739,1719558652842,-500.0,0.00019178,2]
[330519740,1719558652852,-500.0,0.00019178,2]
[330519741,1719558652862,-500.0,0.00019178,2]
[330519742,1719558652872,-500.0,0.00019178,2]
[330519743,1719558652881,-500.0,0.00019178,2]
[330519744,1719558652891,-500.0,0.00019178,2]
[330519745,1719558652902,-500.0,0.00019178,2]
[330519746,1719558652912,-500.0,0.00019178,2]
[330519747,1719558652922,-500.0,0.00019178,2]
[330519748,1719558652932,-500.0,0.00019178,2]
[330519749,1719558652941,-500.0,0.00019178,2]
[330519750,1719558652951,-500.0,0.00019178,2]
[330519751,1719558652961,-500.0,0.00019178,2]
[330519752,1719558652970,-500.0,0.00019178,2]
[330519753,1719558652980,-500.0,0.00019178,2]
[330519754,1719558652990,-213.17899764,0.00019178,2]
[330519755,1719558652999,-500.0,0.00019178,2]
[330519756,1719558653008,-500.0,0.00019178,2]
[330519757,1719558653018,-500.0,0.00019178,2]
[330519758,1719558653028,-500.0,0.00019178,2]
[330519759,1719558653037,-500.0,0.00019178,2]
[330519760,1719558653047,-500.0,0.00019178,2]
[330519761,1719558653056,-500.0,0.00019178,2]
[330519762,1719558653067,-500.0,0.00019178,2]
[330519763,1719558653081,-500.0,0.00019178,2]
[330519764,1719558653091,-500.0,0.00019178,2]
[330519765,1719558653102,-500.0,0.00019178,2]
[330519766,1719558653112,-500.0,0.00019178,2]
[330519767,1719558653124,-500.0,0.00019178,2]
[330519768,1719558653134,-500.0,0.00019178,2]
[330519769,1719558653144,-500.0,0.00019178,2]
[330519770,1719558653158,-500.0,0.00019178,2]
[330519771,1719558653169,-500.0,0.00019178,2]
[330519772,1719558653180,-550.00000001,0.00019178,2]
[330519773,1719558653189,-500.0,0.00019178,2]
[330519774,1719558653199,-500.0,0.00019178,2]
[330519775,1719558653210,-500.0,0.00019178,2]
[330519776,1719558653220,-500.0,0.00019178,2]
[330519777,1719558653229,-500.0,0.00019178,2]
[330519778,1719558653239,-500.0,0.00019178,2]
[330519779,1719558653249,-500.0,0.00019178,2]
[330519780,1719558653259,-500.0,0.00019178,2]
[330519781,1719558653270,-500.0,0.00019178,2]
[330519782,1719558653279,-500.0,0.00019178,2]
[330519783,1719558653289,-353.07260816,0.00019178,2]
[330519784,1719558653298,-500.0,0.00019178,2]
[330519785,1719558653308,-500.0,0.00019178,2]
[330519786,1719558653318,-500.0,0.00019178,2]
[330519787,1719558653327,-500.0,0.00019178,2]
[330519788,1719558653337,-500.0,0.00019178,2]
[330519789,1719558653347,-751.18435649,0.00019178,2]
[330519790,1719558653357,-751.18435649,0.00019178,2]
[330519791,1719558653367,-751.18435649,0.00019178,2]
[330519792,1719558653377,-751.18435649,0.00019178,2]
[330519793,1719558653387,-751.18435649,0.00019178,2]
[330519794,1719558653398,-500.0,0.00019178,2]
[330519795,1719558653407,-500.0,0.00019178,2]
[330519796,1719558653418,-500.0,0.00019178,2]
[330519797,1719558653427,-500.0,0.00019178,2]
[330519798,1719558653437,-500.0,0.00019178,2]
[330519799,1719558653447,-500.0,0.00019178,2]
[330519800,1719558653458,-590.0670085,0.00019178,2]
[330519801,1719558653467,-500.0,0.00019178,2]
[330519802,1719558653477,-354.98156548,0.00019178,2]
[330519803,1719558653487,-500.0,0.00019178,2]
[330519804,1719558653497,-500.0,0.00019178,2]
[330519805,1719558653506,-500.0,0.00019178,2]
[330519806,1719558653516,-500.0,0.00019178,2]
[330519807,1719558653526,-500.0,0.00019178,2]
[330519808,1719558653536,-500.0,0.00019178,2]
[330519809,1719558653545,-500.0,0.00019178,2]
[330519810,1719558653557,-500.0,0.00019178,2]
[330519811,1719558653567,-548.48112142,0.00019178,2]
[330519812,1719558653577,-500.0,0.00019178,2]
[330519813,1719558653587,-500.0,0.00019178,2]
[330519814,1719558653596,-500.0,0.00019178,2]
[330519815,1719558653608,-500.0,0.00019178,2]
[330519816,1719558653617,-500.0,0.00019178,2]
[330519817,1719558653629,-500.0,0.00019178,2]
[330519818,1719558653638,-1000.0,0.00019178,2]
[330519819,1719558653647,-500.0,0.00019178,2]
[330519820,1719558653657,-500.0,0.00019178,2]
[330519821,1719558653666,-500.0,0.00019178,2]
[330519822,1719558653675,-500.0,0.00019178,2]
[330519823,1719558653685,-187.51151515,0.00019178,2]
[330519824,1719558653695,-500.0,0.00019178,2]
[330519825,1719558653704,-500.0,0.00019178,2]
[330519826,1719558653713,-500.0,0.00019178,2]
[330519827,1719558653723,-500.0,0.00019178,2]
[330519828,1719558653733,-500.0,0.00019178,2]
[330519829,1719558653742,-500.0,0.00019178,2]
[330519830,1719558653753,-500.0,0.00019178,2]
[330519831,1719558653763,-500.0,0.00019178,2]
[330519832,1719558653772,-500.0,0.00019178,2]
[330519833,1719558653782,-500.0,0.00019178,2]
[330519834,1719558653792,-500.0,0.00019178,2]
[330519835,1719558653802,-500.0,0.00019178,2]
[330519836,1719558653811,-500.0,0.00019178,2]
[330519837,1719558653820,-547.78266899,0.00019178,2]
[330519838,1719558653829,-500.0,0.00019178,2]
[330519839,1719558653839,-500.0,0.00019178,2]
[330519840,1719558653848,-500.0,0.00019178,2]
[330519841,1719558653860,-500.0,0.00019178,2]
[330519842,1719558653869,-500.0,0.00019178,2]
[330519843,1719558653879,-500.0,0.00019178,2]
[330519844,1719558653888,-303.99318535,0.00019178,2]
[330519845,1719558653899,-500.0,0.00019178,2]
[330519846,1719558653909,-500.0,0.00019178,2]
[330519847,1719558653919,-500.0,0.00019178,2]
[330519848,1719558653929,-500.0,0.00019178,2]
[330519849,1719558653940,-500.0,0.00019178,2]
[330519850,1719558653949,-500.0,0.00019178,2]
[330519851,1719558653959,-467.19680717,0.00019178,2]
[330519852,1719558653971,-500.0,0.00019178,2]
[330519853,1719558653980,-500.0,0.00019178,2]
[330519854,1719558653992,-500.0,0.00019178,2]
[330519855,1719558654002,-500.0,0.00019178,2]
[330519856,1719558654146,-500.0,0.00019178,2]
[330519857,1719558654157,-500.0,0.00019178,2]
[330519858,1719558654168,-573.32796377,0.00019178,2]
[330519859,1719558654178,-500.0,0.00019178,2]
[330519860,1719558654187,-500.0,0.00019178,2]
[330519861,1719558654197,-500.0,0.00019178,2]
[330519862,1719558654206,-500.0,0.00019178,2]
[330519863,1719558654216,-569.99018794,0.00019178,2]
[330519864,1719558654225,-500.0,0.00019178,2]
[330519865,1719558654234,-500.0,0.00019178,2]
[330519866,1719558654244,-500.0,0.00019178,2]
[330519867,1719558654253,-500.0,0.00019178,2]
[330519868,1719558654262,-500.0,0.00019178,2]
[330519869,1719558654271,-500.0,0.00019178,2]
[330519870,1719558654281,-500.0,0.00019178,2]
[330519871,1719558654291,-500.0,0.00019178,2]
[330519872,1719558654300,-500.0,0.00019178,2]
[330519873,1719558654309,-500.0,0.00019178,2]
[330519874,1719558654318,-500.0,0.00019178,2]
[330519875,1719558654327,-500.0,0.00019178,2]
[330519876,1719558654337,-500.0,0.00019178,2]
[330519877,1719558654346,-500.0,0.00019178,2]
[330519878,1719558654358,-500.0,0.00019178,2]
[330519879,1719558654366,-500.0,0.00019178,2]
[330519880,1719558654375,-2000.0,0.00019178,2]
[330519881,1719558654384,-500.0,0.00019178,2]
[330519882,1719558654394,-500.0,0.00019178,2]
[330519883,1719558654403,-500.0,0.00019178,2]
[330519884,1719558654413,-500.0,0.00019178,2]
[330519885,1719558654422,-500.0,0.00019178,2]
[330519886,1719558654431,-626.70852228,0.00019178,2]
[330519887,1719558654441,-886.86,0.00019178,2]
[330519888,1719558654451,-500.0,0.00019178,2]
[330519889,1719558654460,-500.0,0.00019178,2]
[330519890,1719558654469,-500.0,0.00019178,2]
[330519891,1719558654479,-500.0,0.00019178,2]
[330519892,1719558654488,-500.0,0.00019178,2]
[330519893,1719558654497,-1151.71,0.00019178,2]
[330519894,1719558654506,-500.0,0.00019178,2]
[330519895,1719558654516,-500.0,0.00019178,2]
[330519896,1719558654525,-500.0,0.00019178,2]
[330519897,1719558654534,-682.81,0.00019178,2]
[330519898,1719558654543,-500.0,0.00019178,2]
[330519899,1719558654552,-2974.6,0.00019178,2]
[330519900,1719558654562,-500.0,0.00019178,2]
[330519901,1719558654571,-500.0,0.00019178,2]
[330519902,1719558654581,-500.0,0.00019178,2]
[330519903,1719558654591,-232.22382455,0.00019178,2]
[330519904,1719558654600,-1852.46,0.00019178,2]
[330519905,1719558654609,-520.33,0.00019178,2]
[330519906,1719558654619,-500.0,0.00019178,2]
[330519907,1719558654628,-500.0,0.00019178,2]
[330519908,1719558654638,-1092.66,0.00019178,2]
[330519909,1719558654647,-500.0,0.00019178,2]
[330519910,1719558654656,-500.0,0.00019178,2]
[330519911,1719558654665,-500.0,0.00019178,2]
[330519912,1719558654674,-500.0,0.00019178,2]
[330519913,1719558654684,-151.0,0.00019178,2]
[330519914,1719558654693,-743.82,0.00019178,2]
[330519915,1719558654702,-151.0,0.00019178,2]
[330519916,1719558654711,-248.395581,0.00019178,2]
[330519917,1719558654720,-500.0,0.00019178,2]
[330519918,1719558654729,-860.26,0.00019178,2]
[330519919,1719558654738,-500.0,0.00019178,2]
[330519920,1719558654748,-500.0,0.00019178,2]
[330519921,1719558654757,-608.72,0.00019178,2]
[330519922,1719558654765,-734.57,0.00019178,2]
[330519923,1719558654774,-500.0,0.00019178,2]
[330519924,1719558654783,-888.31,0.00019178,2]
[330519925,1719558654792,-500.0,0.00019178,2]
[330519926,1719558654801,-516.54918675,0.00019178,2]
[330519927,1719558654810,-560.78,0.00019178,2]
[330519928,1719558654820,-500.0,0.00019178,2]
[330519929,1719558654829,-500.0,0.00019178,2]
[330519930,1719558654839,-1659.7,0.00019178,2]
[330519931,1719558654847,-2806.65,0.00019178,2]
[330519932,1719558654857,-500.0,0.00019178,2]
[330519933,1719558654867,-500.0,0.00019178,2]
[330519934,1719558654876,-612.37137942,0.00019178,2]
[330519935,1719558654885,-500.0,0.00019178,2]
[330519936,1719558654894,-500.0,0.00019178,2]
[330519937,1719558654903,-500.0,0.00019178,2]
[330519938,1719558654912,-2305.03,0.00019178,2]
[330519939,1719558654921,-500.0,0.00019178,2]
[330519940,1719558654931,-500.0,0.00019178,2]
[330519941,1719558654940,-500.0,0.00019178,2]
[330519942,1719558654949,-1208.84,0.00019178,2]
[330519943,1719558654959,-1136.16,0.00019178,2]
[330519944,1719558654968,-500.0,0.00019178,2]
[330519945,1719558654977,-737.0,0.00019178,2]
[330519946,1719558654987,-500.0,0.00019178,2]
[330519947,1719558654996,-500.0,0.00019178,2]
[330519948,1719558655005,-500.0,0.00019178,2]
[330519949,1719558655014,-500.0,0.00019178,2]
[330519950,1719558655024,-2150.69,0.00019178,2]
[330519951,1719558655033,-500.0,0.00019178,2]
[330519952,1719558655042,-500.0,0.00019178,2]
[330519953,1719558655051,-500.0,0.00019178,2]
[330519954,1719558655060,-500.0,0.00019178,2]
[330519955,1719558655074,-500.0,0.00019178,2]
[330519956,1719558655084,-500.0,0.00019178,2]
[330519957,1719558655093,-1100.75,0.00019178,2]
[330519958,1719558655103,-532.95,0.00019178,2]
[330519959,1719558655114,-2202.97,0.00019178,2]
[330519960,1719558655123,-151.0,0.00019178,2]
[330519961,1719558655136,-500.81164339,0.00019178,2]
[330519962,1719558655145,-151.0,0.00019178,2]
[330519963,1719558655157,-151.0,0.00019178,2]
[330519964,1719558655166,-928.31,0.00019178,2]
[330519965,1719558655176,-151.0,0.00019178,2]
[330519966,1719558655185,-252.7460123,0.00019178,2]
[330519967,1719558655194,-500.0,0.00019178,2]
[330519968,1719558655203,-528.55,0.00019178,2]
[330519969,1719558655213,-500.0,0.00019178,2]